Cogmind - Beta 13 @@@ ROGUE MODE // 2024.07.12 @ 22:19:35 Player: APerTAS Result: Destroyed by D-53 Grenadier with Mini Grenade Launcher Performance ------------- Evolutions (0) 0 Regions Visited (2) 400 Robots Destroyed (17) 85 Value Destroyed (229) 229 Prototype IDs (0) 0 Alien Tech Used (0) 0 Bonus (0) 0 TOTAL SCORE: 714 Bonus ------- None Cogmind --------- Core Integrity 0/250 Matter 181/300 Energy 100/100 System Corruption 0% Temperature Cool (0) Movement Core (50) Location -10/Mines Parts ------- > --- POWER (1) -------- (None) > --- PROPULSION (2) --- (None) > --- UTILITY (2) ------ (None) > --- WEAPON (2) ------- (None) > --- INVENTORY (5) ---- Compact Wheel Compact Wheel Improved Targeting Computer Propulsion Shielding Light Assault Rifle Peak State ------------ > --- POWER ------------ Ion Engine > --- PROPULSION ------- Light Treads Light Treads > --- UTILITY ---------- Small Storage Unit Improved Targeting Computer > --- WEAPON ----------- Assault Rifle Grenade Launcher > --- INVENTORY -------- Light Ion Engine Compact Wheel Compact Wheel Visual Processing Unit Improved Targeting Computer Propulsion Shielding Assault Rifle Light Assault Rifle [Rating: 9] Favorites ----------- Power Ion Engine Engine Ion Engine Propulsion Light Treads Treads Light Treads Utility Small Storage Unit Storage Small Storage Unit Processor Improved Targeting Computer Weapon Assault Rifle Ballistic Gun Assault Rifle Launcher Grenade Launcher Build | -11 -10 -10 ------- Run | Yrd Mat Min Slots Evolved . | . . . Power . | . . . Propulsion . | . . . Utility . | . . . Weapon . | . . . Parts Attached 12 | 6 6 . Power 1 | 1 . . Engine 1 | 1 . . Core . | . . . Reactor . | . . . Propulsion 3 | 2 1 . Treads 3 | 2 1 . Leg . | . . . Wheel . | . . . Hover . | . . . Flight . | . . . Utility 3 | 1 2 . Device . | . . . Storage 2 | 1 1 . Processor 1 | . 1 . Hackware . | . . . Protection . | . . . Artifact . | . . . Weapon 5 | 2 3 . Energy Gun . | . . . Energy Cannon . | . . . Ballistic Gun 3 | 2 1 . Ballistic Cannon . | . . . Launcher 2 | . 2 . Special Weapon . | . . . Impact Weapon . | . . . Slashing Weapon . | . . . Piercing Weapon . | . . . Special Melee Weapon . | . . . Unidentified Prototypes . | . . . Parts Lost 5 | . . 5 Power 1 | . . 1 Propulsion 2 | . . 2 Utility . | . . . Weapon 2 | . . 2 Highest Loss Streak 5 | . . 5 To Critical Strikes . | . . . Average Slot Usage (%) 94 | . 95 82 Engine 13 | . 14 10 Treads 27 | . 27 21 Storage 14 | . 14 14 Processor 10 | . 10 14 Ballistic Gun 14 | . 14 10 Launcher 12 | . 12 10 Naked Turns 4 | . . 4 Heaviest Build 20 | 14 20 20 Greatest Support 40 | 40 40 40 Greatest Overweight (x) . | . . . Average Overweight (x) . | . . . Largest Inventory Capacity 10 | 8 10 10 Average Capacity 8 | 5 8 9 Most Carried 9 | 5 9 8 Average Carried 6 | 2 6 7 Final Capacity 10 | 8 10 5 Final Carried 8 | 4 8 5 Class Distribution -------------------- 100% | Mutant Dominant Class ---------------- Mutant | -10/Materials Mutant | -10/Mines Resources | -11 -10 -10 ----------- Run | Yrd Mat Min Matter Collected 408 | 226 182 . Remotely . | . . . Salvage Created 323 | . 308 15 Parts 23 | . 21 2 Haulers Intercepted . | . . . Recyclers Shooed . | . . . Parts Field Recycled . | . . . Retrieved Matter . | . . . Parts Self-Destructed . | . . . Prevented . | . . . Kills | -11 -10 -10 ------- Run | Yrd Mat Min Combat Hostiles Destroyed 11 | . 8 3 AOE 11 | . 8 3 Classes Destroyed 6 | . 5 1 Builder 4 | . 4 . Recycler 2 | . 2 . Watcher 1 | . 1 . Swarmer 8 | . 6 2 Grunt 2 | . 2 . Assembled 1 | . . 1 Best Kill Streak 9 | . 9 3 Combat Bots Only 5 | . 5 3 Max Kills in Single Turn 4 | . 4 1 Gunslinging . | . . . Exploded 2 | . 2 1 Melee . | . . . Uniques/NPCs Destroyed . | . . . Combat | -11 -10 -10 -------- Run | Yrd Mat Min Hostile Shots Fired 48 | . 19 29 Missed 7 | . 5 2 Damage Taken 1028 | . 166 862 Core 273 | . . 273 Absorbed by Shields . | . . . Regen/Repaired (Parts) 97 | . 97 . Core Remaining (%) 100 | 100 . . Volleys Fired 24 | . 16 8 Largest 2 | . 2 2 Hottest 50 | . 50 50 Shots Fired 40 | . 24 16 Gun 24 | . 16 8 Cannon . | . . . Launcher 16 | . 8 8 Special . | . . . Kinetic 24 | . 16 8 Thermal . | . . . Explosive 16 | . 8 8 Electromagnetic . | . . . Robot Hit Streak 4 | . 4 3 Robot Miss Streak 3 | . 2 3 Penetration Max . | . . . Secondary Targets . | . . . Shots Hit Robots 22 | . 13 9 Core Hits 34 | . 25 9 Critical Kills . | . . . Critical Parts Destroyed 1 | . 1 . Critical Strikes 1 | . 1 . Destroy 1 | . 1 . Melee Attacks . | . . . Impact . | . . . Slashing . | . . . Piercing . | . . . Sneak Attacks . | . . . Combat Hostiles . | . . . Follow-up Attacks . | . . . Damage Inflicted 1154 | . 763 391 Guns 135 | . 87 48 Cannons . | . . . Explosions 1019 | . 676 343 Melee . | . . . Ramming . | . . . Kinetic 135 | . 87 48 Thermal . | . . . Explosive 1019 | . 676 343 Electromagnetic . | . . . Impact . | . . . Slashing . | . . . Piercing . | . . . Highest Corruption . | . . . Average Corruption . | . . . Corruption Purged . | . . . Corruption Blocked . | . . . Overload Shots . | . . . Overflow Damage 26 | . . 26 Projectiles . | . . . Explosions 26 | . . 26 Melee . | . . . Knockbacks . | . . . Impact . | . . . Kinetic . | . . . Secondary . | . . . Self-Inflicted Damage 42 | . 4 38 Shots 3 | . 1 2 Rammed . | . . . Targets Rammed . | . . . Kicked . | . . . Crushed . | . . . Highest Temperature 16 | . 16 . Average Temperature 10 | . 10 . Received Heat Transfer 75 | . 75 . Siege Activations . | . . . Robots Corrupted . | . . . Combat Hostiles . | . . . Parts Fried . | . . . Impact Corruptions . | . . . Robots Melted . | . . . Combat Hostiles . | . . . Parts Melted . | . . . Heat Transferred . | . . . Parts Sabotaged . | . . . Parts Stolen . | . . . Parts Stripped . | . . . Power Chain Reactions . | . . . Alert | -11 -10 -10 ------- Run | Yrd Mat Min Peak Influence 298 | . 298 108 Initial 43 | . . 43 Average 103 | . 123 78 Maximum Alert Level 1 | . 1 . Low Security (%) 84 | 100 80 100 Level 1 15 | . 19 . Level 2 . | . . . Level 3 . | . . . Level 4 . | . . . Level 5 . | . . . High Security . | . . . Max Security . | . . . Squads Dispatched 1 | . 1 . Investigation . | . . . Extermination . | . . . Reinforcement 1 | . 1 . Assault . | . . . Garrison . | . . . Intercept . | . . . Searches Triggered . | . . . Construction Impeded . | . . . Haulers Reinforced . | . . . Active Scanning Responses . | . . . Cargo Convoy Interrupts . | . . . Stealth | -11 -10 -10 --------- Run | Yrd Mat Min Distress Signals 1 | . 1 . Communications Jammed . | . . . Distress Signals . | . . . Times Spotted 31 | . 14 17 Peak Tracking Total 11 | . 4 11 Tactical Retreats . | . . . Traps | -11 -10 -10 ------- Run | Yrd Mat Min Traps Triggered . | . . . Indirectly . | . . . Trap Hack Attempts . | . . . Triggered . | . . . Disarmed . | . . . Reprogrammed 6 | . 6 . Reused . | . . . Traps Extracted . | . . . Installed . | . . . Triggered . | . . . Machines | -11 -10 -10 ---------- Run | Yrd Mat Min Machines Disabled 2 | . 2 . Max in Single Turn 1 | . 1 . Machines Repaired . | . . . Machines Dismantled . | . . . Machines Sabotaged . | . . . Overloaded Fab Kills . | . . . Hacking | -11 -10 -10 --------- Run | Yrd Mat Min Machines Accessed 4 | . 4 . Terminals 2 | . 2 . Fabricators . | . . . Repair Stations 1 | . 1 . Recycling Units 1 | . 1 . Scanalyzers . | . . . Garrison Access . | . . . Total Hacks 17 | . 17 . Successful 9 | . 9 . Failed 8 | . 8 . Catastrophic . | . . . Database Lockouts . | . . . Manual 2 | . 2 . Terminals 11 | . 11 . Fabricators . | . . . Repair Stations 4 | . 4 . Recycling Units 2 | . 2 . Scanalyzers . | . . . Garrison Access . | . . . Terminal Hacks 4 | . 4 . Robot Analysis 1 | . 1 . Locate Traps 1 | . 1 . Reprogram Traps 1 | . 1 . Zone Layout 1 | . 1 . Fabricator Hacks . | . . . Repair Station Hacks 4 | . 4 . Scan Component 2 | . 2 . Repair 2 | . 2 . Recycling Unit Hacks . | . . . Scanalyzer . | . . . Garrison Access Hacks . | . . . Unauthorized Hacks 1 | . 1 . Terminals . | . . . Fabricators . | . . . Repair Stations . | . . . Recycling Units 1 | . 1 . Reject 1 | . 1 . Scanalyzers . | . . . Garrison Access . | . . . Data Cores Recovered . | . . . Used . | . . . Hacking Detections 2 | . 2 . Full Trace Events 1 | . 1 . Feedback Events . | . . . Feedback Blocked . | . . . Robot Schematics Acquired . | . . . Robots Built . | . . . Authchips . | . . . Time . | . . . Total Robot Build Rating . | . . . Part Schematics Acquired . | . . . Parts Built . | . . . Authchips . | . . . Time . | . . . Total Part Build Rating . | . . . Parts Repaired 2 | . 2 . Time 52 | . 52 . Parts Recycled . | . . . Recycled Matter . | . . . Retrieved Matter . | . . . Retrieved Components . | . . . Parts Scanalyzed . | . . . Part Schematics Acquired . | . . . Parts Damaged . | . . . Bothacking | -11 -10 -10 ------------ Run | Yrd Mat Min Used RIF Installer . | . . . Robots Hacked . | . . . Non-combat . | . . . Combat . | . . . Robot Hacks Applied . | . . . Relay Couplers Released . | . . . Fabnet Peak Effective % . | . . . Robots Rewired . | . . . Allies Hacked . | . . . Hacks Repelled . | . . . Allies | -11 -10 -10 -------- Run | Yrd Mat Min Total Allies . | . . . Largest Group . | . . . Highest-Rated Group . | . . . Highest-Rated Ally . | . . . Total Orders . | . . . Ally Attacks . | . . . Total Damage . | . . . Kills . | . . . Allies Corrupted . | . . . Allies Melted . | . . . Intel | -11 -10 -10 ------- Run | Yrd Mat Min Robot Analysis Total 1 | . 1 . Derelict Logs Recovered . | . . . Drone Launches . | . . . Drone Recoveries . | . . . Exploration | -11 -10 -10 ------------- Run | Yrd Mat Min Turns Passed 857 | 129 689 39 Spaces Moved 440 | 76 362 2 Core 7 | 7 . . Treads 433 | 69 362 2 Legs . | . . . Wheels . | . . . Hover . | . . . Flight . | . . . Fastest Speed 50 | 50 160 160 Average Speed 158 | 149 160 160 Slowest Speed 160 | 160 160 160 Overloaded Moves . | . . . Propulsion Burnouts . | . . . Robots Hopped . | . . . Cave-ins Triggered . | . . . Exploration Rate (%) 22 | 6 52 8 Regions Visited 2 Branch Regions 1 Pre-discovered Areas . | . . . Known Exits Taken . | . . . Unknown Exits Taken 2 | 1 1 . Scrap Searched . | . . . Spaces Dug . | . . . Terrain Destroyed 73 | . 26 47 Melee . | . . . Projectile . | . . . AOE 73 | . 26 47 Terrain Rammed . | . . . Walls Destroyed . | . . . Machines Disabled . | . . . Actions | -11 -10 -10 --------- Run | Yrd Mat Min Total 561 | 91 448 22 Wait 64 | . 52 12 Move 438 | 75 361 2 Hop . | . . . Pick Up 20 | 10 10 . Fast Attach . | . . . Attach 9 | 6 3 . Detach . | . . . Swap 3 | . 3 . Drop 3 | . 3 . Fire 24 | . 16 8 Melee . | . . . Ram . | . . . Kick . | . . . Crush . | . . . Escape Stasis . | . . . Rewire . | . . . Trap . | . . . Miscellaneous . | . . . Route ------- -11/Scrapyard -10/Materials (discovered 3 exits: [*Mat] / [*Min x2]) -10/Mines (discovered 1 exit: [*Mat]) History --------- Turn | Location | Event 2 | -11/Scrapyard | Discovered new exit (range 16) 130 | -11/Scrapyard | Entered Materials 316 | -10/Materials | Build established: Mutant 409 | -10/Materials | Discovered new exit (range 16) 409 | -10/Materials | Discovered new exit (range 16) 521 | -10/Materials | Discovered new exit (range 16) 746 | -10/Materials | Repaired Lgt. Treads 774 | -10/Materials | Repaired Grenade Launcher 819 | -10/Materials | Entered Mines 820 | -10/Mines | Assembled infested the area 821 | -10/Mines | Discovered new exit (range 13) 851 | -10/Mines | Core integrity fell below 50% 854 | -10/Mines | Core integrity fell below 20% 854 | -10/Mines | Released all parts (2) 858 | -10/Mines | Destroyed by D-53 Grenadier with Mini Grenade Launcher Last Messages --------------- U-05 Engineer lays Concrete. The unstable cave ceiling collapses. U-05 Engineer lays Concrete. The unstable cave ceiling collapses. Ion Engine destroyed. U-05 Engineer lays Concrete. The unstable cave ceiling collapses. U-05 Engineer lays Concrete. The unstable cave ceiling collapses. U-05 Engineer lays Concrete. K-01 Serf collects debris. U-05 Engineer destroyed. Released Imp. Targeting Computer. Released Med. Storage Unit. U-05 Engineer lays Concrete. YI-UF0 mumbles something. K-01 Serf destroyed. K-01 Serf collects debris. U-05 Engineer builds a Wall. The unstable cave ceiling collapses. Map ----- +----------------------------------------------------+ | ?????????????????????????????????????????????????? | | ?????????????????????????????????????????????????? | | ?????????????????????????????????????????????????? | | ?????????????????????????????????????????????????? | | ?????????????????????????????????????????????????? | | ?????????????????????????????????????????????????? | | ?????????????????????????????????????????????????? | | ?????????????????????????????????????????????????? | | ?????????????????????????????????????????????????? | | ?????????????????????????????????????????????????? | | ?????????????????????????????????????????????????? | | ????????????????????? ??????????????????????????? | | ??????????????????# ?###?## ????????????????? | | ????????????????? # # ?????????????????? | | ??????????????????< ?????????????????? | | ??????????????????# %% g ??????????????????? | | ??????????????????? # ??????????????????? | | ???????????????????# # #??????????????????? | | ???????????????????? # ???????????????????? | | ????????????????????? # # #???????????????????? | | ?????????????????????# #???????????????????? | | ????????????????????## # ##??????????????????? | | ????????????????????# #??????????????????? | | ????????????????????# #??????????????????? | | ????????????????????# ! ###### #???????????? | | ????????????????????# *@[ #???????????? | | ????????????????????# ##???????????????? | | ????????????????????# #????????????????? | | ????????????????????## d% #????????????????? | | ?????????????????????# k# ###????????????????? | | ?????????????????????## #?????????????????? | | ??????????????????????# ##?????????????????? | | ?????????????????????? #??????????????????? | | ??????????????????????# # #??????????????????? | | ??????????????????????# u ??????????????????? | | ??????????????????????## ??????????????????? | | ???????????????????????# % #?????????????????? | | ???????????????????????## < #?????????????????? | | ????????????????????????? #?????????????????? | | ?????????????????????????#####???????????????????? | | ?????????????????????????????????????????????????? | | ?????????????????????????????????????????????????? | | | | | | | | | | | | | | | | | +----------------------------------------------------+ Best States ------------- Heat Dissipation 25 Energy Generation 10 Energy Capacity 250 Matter Stores 300 Matter Capacity 300 Sight Range 16 Terrain Scan Density 10 Evasion (%) 40 Targeting Accuracy 6 Recoil Reduction 2 Item Schematics ----------------- None Robot Schematics ------------------ None Fabricated ------------ Nothing Alien Tech Used ----------------- None Achievements -------------- None Challenges ------------ None Game ------ Seed PhysicsMissileGreatsword Manual? 0 Play Time 00:07:37 Cumulative 10.9 hours Start 2024.07.12 @ 22:12:35 End 2024.07.12 @ 22:19:35 Sessions 1 Manual Loads 0 Difficulty Rogue Special Mode None Game No. 28 Rogue 28 Adventurer 0 Explorer 0 Win Type - Total 0 Types 0/0/0/0/0/0/0/0/0 Lore% 17 Gallery% 15 Achievement% 16 Wizard Run 0 Options --------- Layout 1 ASCII 0 Keyboard 0 Movement Arrows Keybinds 0 Fullscreen 1 Font 28/Dina Map View 50x43 Zoom Use 0% Tactical HUD 0 Map Filters NONE Filters NONE Steam 1 RUN: 96ec0acc-d9d0-4df8-865c-288859a5ecc0